fUST/lending_fUST_20240205
["ID","MTS","AMOUNT","RATE_DAILY","PERIOD"]
[313268894,1707062515890,500.278926,0.00019715,2]
[313268944,1707062938191,250.139463,0.00019529,2]
[313268985,1707063032651,-260.89555211,0.00020504,2]
[313268986,1707063032665,-167.05841749,0.00020504,2]
[313268987,1707063032677,-651.59002088,0.00020504,2]
[313268988,1707063032690,-155.01395126,0.00020504,2]
[313268989,1707063032702,-1269.76151482,0.00020504,2]
[313268990,1707063032715,-609.31564818,0.00020504,2]
[313268991,1707063032725,-261.69062499,0.00020504,2]
[313268992,1707063032735,-155.01395126,0.00020505,2]
[313268993,1707063032745,-181.4071721,0.00020505,2]
[313268994,1707063032756,-639.98733402,0.00020505,2]
[313268995,1707063032767,-562.79953521,0.00020505,2]
[313268996,1707063032779,-1245.08019096,0.00020505,2]
[313268997,1707063032790,-2716.44702859,0.00020506,5]
[313268998,1707063032802,-1803.71934173,0.00020506,2]
[313268999,1707063032812,-3229.8,0.00020506,3]
[313269000,1707063032822,-689.61806868,0.00020507,2]
[313269001,1707063032833,-589.70386926,0.00020507,2]
[313269002,1707063032844,-3875.76,0.00020507,3]
[313269003,1707063032854,-500.0,0.00020508,2]
[313269004,1707063032864,-3384.07,0.00020508,3]
[313269005,1707063032875,-155.01395126,0.00020508,2]
[313269006,1707063032893,-19743.97000718,0.00020508,2]
[313269007,1707063032914,-155.01395126,0.00020508,2]
[313269008,1707063032930,-620.7814264,0.00020508,2]
[313269009,1707063032945,-3329.18619939,0.00020508,2]
[313269010,1707063032959,-330.30417565,0.00020508,2]
[313269011,1707063032972,-3753.61482354,0.00020508,2]
[313269012,1707063032984,-4650.91,0.00020508,3]
[313269013,1707063032996,-322.14005268,0.00020509,2]
[313269014,1707063033008,-1017.67059015,0.00020509,2]
[313269015,1707063033021,-5220.96019101,0.00020509,2]
[313269016,1707063033033,-161.39805278,0.00020509,2]
[313269017,1707063033044,-1945.88710607,0.00020509,2]
[313269018,1707063033056,-7977.34507232,0.00020509,2]
[313269019,1707063033067,-1433.12724431,0.0002051,2]
[313269020,1707063033079,-2605.0,0.00020516,2]
[313269021,1707063033090,-199.63780309,0.00020517,2]
[313269022,1707063033101,-6801.02037964,0.00020517,2]
[313269023,1707063033112,-155.21612094,0.00020529,2]
[313269024,1707063033123,-564.75425391,0.00020578,2]
[313269025,1707063033134,-11403.08540316,0.00020863,2]
[313269026,1707063033145,-20910.74795782,0.00020938,2]
[313269027,1707063033157,-12118.07734019,0.00020943,2]
[313269028,1707063033168,-167.18166868,0.00020953,2]
[313269029,1707063033179,-2713.801317,0.00020956,2]
[313269030,1707063033190,-2042.80747063,0.00020967,2]
[313269031,1707063033201,-341.31785772,0.00020967,2]
[313269032,1707063033212,-310.0,0.00020967,2]
[313269033,1707063033224,-212.4169632,0.00020967,2]
[313269034,1707063033241,-159.09002618,0.00020967,2]
[313269035,1707063033253,-310.00620025,0.00020967,2]
[313269036,1707063033267,-155.0356582,0.00020967,2]
[313269037,1707063033278,-20909.96703579,0.00020967,2]
[313269038,1707063033290,-801.22910976,0.00020967,2]
[313269039,1707063033301,-1589.68284634,0.00020967,2]
[313269040,1707063033313,-1855.98039572,0.00020968,2]
[313269041,1707063033324,-1295.94446577,0.00020968,2]
[313269042,1707063033454,-295.45050683,0.00020968,2]
[313269043,1707063033465,-1743.90819804,0.00020968,2]
[313269044,1707063033475,-12652.0,0.0002097,2]
[313269045,1707063033484,-245.076998,0.0002097,2]
[313269046,1707063033494,-245.076998,0.0002097,2]
[313269047,1707063033504,-151.0,0.0002097,2]
[313269048,1707063033514,-151.0,0.0002097,2]
[313269049,1707063033523,-399.914727,0.0002097,2]
[313269050,1707063033532,-399.914727,0.0002097,2]
[313269051,1707063033541,-564.75425391,0.00021548,2]
[313269052,1707063033550,-200.0,0.00021582,7]
[313269053,1707063033560,-253.59425812,0.00022,2]
[313269054,1707063033569,-564.75425391,0.00022518,2]
[313269055,1707063033579,-171.21968014,0.00023111,2]
[313269056,1707063033589,-1378.58151733,0.00023111,2]
[313269057,1707063033599,-176.68540602,0.00023111,2]
[313269058,1707063033609,-564.75425391,0.00023487,2]
[313269059,1707063033618,-999.88,0.000235,2]
[313269060,1707063033628,-280.0,0.0002374,7]
[313269061,1707063033639,-2169.65844131,0.000239,2]
[313269062,1707063033648,-313.00418309,0.000239,2]
[313269063,1707063033659,-155.40453301,0.000239,2]
[313269064,1707063033670,-300.0,0.000239,2]
[313269065,1707063033680,-2088.61407986,0.000239,2]
[313269066,1707063033691,-343.73527458,0.000239,2]
[313269067,1707063033701,-620.36538799,0.00023921,2]
[313269068,1707063033712,-3000.0,0.00024,2]
[313269069,1707063033722,-237.054,0.00024,2]
[313269070,1707063033732,-237.054,0.00024,2]
[313269071,1707063033743,-276.0,0.00024,2]
[313269072,1707063033755,-151.0,0.00024,2]
[313269073,1707063033765,-151.0,0.00024,2]
[313269074,1707063033776,-249.022324,0.00024,2]
[313269075,1707063033786,-249.022324,0.00024,2]
[313269076,1707063033797,-564.75425391,0.00024457,2]
[313269077,1707063033808,-155.50464675,0.00024553,2]
[313269078,1707063033817,-317.41739959,0.00024553,2]
[313269079,1707063033826,-1581.70409938,0.00024553,2]
[313269080,1707063033837,-157.09018458,0.00024554,2]
[313269081,1707063033847,-155.35572105,0.00024554,2]
[313269082,1707063033857,-4724.54144427,0.00024555,2]
[313269083,1707063033867,-246.76460604,0.00024555,2]
[313269084,1707063033876,-155.04461547,0.00024555,2]
[313269085,1707063033886,-155.1920337,0.00024555,2]
[313269086,1707063033895,-1484.82918512,0.00024555,2]
[313269087,1707063033907,-903.96695073,0.00024555,2]
[313269088,1707063033917,-155.37316969,0.00024555,2]
[313269089,1707063033927,-269.17682424,0.00024555,2]
[313269090,1707063033937,-309.99381017,0.00024555,2]
[313269091,1707063033946,-155.34979036,0.00024555,2]
[313269092,1707063033955,-245.076998,0.00024556,2]
[313269093,1707063033965,-245.076998,0.00024556,2]
[313269094,1707063033975,-151.0,0.00024556,2]
[313269095,1707063033985,-399.914727,0.00024556,2]
[313269096,1707063033996,-399.914727,0.00024556,2]
[313269097,1707063034006,-237.054,0.00024557,2]
[313269098,1707063034015,-237.054,0.00024557,2]
[313269099,1707063034024,-151.0,0.00024557,2]
[313269100,1707063034034,-1197.90639254,0.00024655,2]
[313269101,1707063034043,-523.0723444,0.00024655,2]
[313269102,1707063034052,-11242.45256001,0.00024656,2]
[313269103,1707063034061,-500.0,0.00024656,2]
[313269104,1707063034070,-500.0,0.00024656,2]
[313269105,1707063034080,-172.12068283,0.00024656,2]
[313269106,1707063034090,-219.22592694,0.00024656,2]
[313269107,1707063034100,-456.82832043,0.00024656,2]
[313269108,1707063034110,-500.0,0.00024656,2]
[313269109,1707063034119,-500.0,0.00024656,2]
[313269110,1707063034128,-500.0,0.00024656,2]
[313269111,1707063034138,-500.0,0.00024656,2]
[313269112,1707063034149,-400.13914788,0.00024656,2]
[313269113,1707063034160,-500.0,0.00024656,2]
[313269114,1707063034170,-175.53053005,0.00024656,2]
[313269115,1707063034180,-500.0,0.00024656,2]
[313269116,1707063034189,-500.0,0.00024656,2]
[313269117,1707063034199,-500.0,0.00024656,2]
[313269118,1707063034209,-500.0,0.00024656,2]
[313269119,1707063034219,-500.0,0.00024656,2]
[313269120,1707063034230,-320.37448699,0.00024656,2]
[313269121,1707063034240,-249.022324,0.00024656,2]
[313269122,1707063034250,-249.022324,0.00024656,2]
[313269123,1707063034260,-500.0,0.00024657,2]
[313269124,1707063034270,-500.0,0.00024657,2]
[313269125,1707063034279,-500.0,0.00024657,2]
[313269126,1707063034288,-500.0,0.00024657,2]
[313269127,1707063034298,-500.0,0.00024657,2]
[313269128,1707063034311,-500.0,0.00024657,2]
[313269129,1707063034321,-500.0,0.00024657,2]
[313269130,1707063034330,-500.0,0.00024657,2]
[313269131,1707063034340,-500.0,0.00024657,2]
[313269132,1707063034349,-1006.25,0.00024657,2]
[313269133,1707063034359,-500.0,0.00024657,2]
[313269134,1707063034369,-500.0,0.00024657,2]
[313269135,1707063034378,-427.83923496,0.00024657,2]
[313269136,1707063034392,-25.77706967,0.00024657,2]
[313269137,1707063034401,-510.80103802,0.00024657,2]
[313269138,1707063034411,-500.0,0.00024657,2]
[313269139,1707063034420,-500.0,0.00024657,2]
[313269140,1707063034432,-500.0,0.00024657,2]
[313269141,1707063034441,-237.054,0.00024657,2]
[313269142,1707063034450,-237.054,0.00024657,2]
[313269143,1707063034460,-237.054,0.00024657,2]
[313269144,1707063034469,-237.054,0.00024657,2]
[313269145,1707063034478,-237.054,0.00024657,2]
[313269146,1707063034488,-237.054,0.00024657,2]
[313269147,1707063034497,-21.43532406,0.00024657,2]
[313269202,1707063038712,-155.28792602,0.00020503,2]
[313269204,1707063038722,-3493.57161214,0.00020504,2]
[313269206,1707063038731,-37041.71922854,0.00020505,2]
[313269208,1707063038740,-431.44805148,0.00024657,2]
[313269210,1707063038750,-500.0,0.00024657,2]
[313269212,1707063038759,-500.0,0.00024657,2]
[313269214,1707063038768,-500.0,0.00024657,2]
[313269216,1707063038777,-500.0,0.00024657,2]
[313269218,1707063038786,-475.04330949,0.00024657,2]
[313269220,1707063038795,-500.0,0.00024657,2]
[313269222,1707063038804,-500.0,0.00024657,2]
[313269224,1707063038813,-500.0,0.00024657,2]
[313269226,1707063038821,-516.90484755,0.00024657,2]
[313269228,1707063038830,-500.0,0.00024657,2]
[313269230,1707063038839,-898.82,0.00024657,2]
[313269232,1707063038849,-502.98900751,0.00024657,2]
[313269234,1707063038858,-500.0,0.00024657,2]
[313269236,1707063038867,-500.0,0.00024657,2]
[313269238,1707063038876,-613.17091066,0.00024657,2]
[313269240,1707063038886,-500.0,0.00024657,2]
[313269242,1707063038895,-165.93508033,0.00024657,2]
[313269244,1707063038904,-500.0,0.00024657,2]
[313269246,1707063038913,-500.0,0.00024657,2]
[313269248,1707063038923,-500.0,0.00024657,2]
[313269250,1707063038933,-500.0,0.00024657,2]
[313269252,1707063038942,-287.11886758,0.00024657,2]
[313269254,1707063038951,-537.64455944,0.00024657,2]
[313269256,1707063038961,-500.0,0.00024657,2]
[313269257,1707063038970,-1078.89,0.00024657,2]
[313269259,1707063038979,-500.0,0.00024657,2]
[313269260,1707063038988,-151.0,0.00024657,2]
[313269262,1707063038997,-500.0,0.00024657,2]
[313269264,1707063039006,-500.0,0.00024657,2]
[313269265,1707063039015,-500.0,0.00024657,2]
[313269267,1707063039024,-500.0,0.00024657,2]
[313269269,1707063039033,-500.0,0.00024657,2]
[313269271,1707063039042,-500.0,0.00024657,2]
[313269273,1707063039051,-508.23528171,0.00024657,2]
[313269275,1707063039060,-500.0,0.00024657,2]
[313269277,1707063039069,-500.0,0.00024657,2]
[313269279,1707063039078,-500.0,0.00024657,2]
[313269281,1707063039087,-500.0,0.00024657,2]
[313269283,1707063039096,-500.0,0.00024657,2]
[313269285,1707063039105,-500.0,0.00024657,2]
[313269287,1707063039115,-500.0,0.00024657,2]
[313269289,1707063039124,-500.0,0.00024657,2]
[313269291,1707063039133,-413.30558141,0.00024657,2]
[313269293,1707063039142,-509.92424347,0.00024657,2]
[313269295,1707063039151,-500.0,0.00024657,2]
[313269297,1707063039160,-505.53243445,0.00024657,2]
[313269299,1707063039169,-500.0,0.00024657,2]
[313269301,1707063039178,-500.0,0.00024657,2]
[313269303,1707063039187,-500.0,0.00024657,2]
[313269305,1707063039196,-500.0,0.00024657,2]
[313269307,1707063039204,-500.0,0.00024657,2]
[313269308,1707063039214,-500.0,0.00024657,2]
[313269310,1707063039222,-500.0,0.00024657,2]
[313269312,1707063039237,-500.0,0.00024657,2]
[313269315,1707063039249,-500.0,0.00024657,2]
[313269316,1707063039258,-500.0,0.00024657,2]
[313269318,1707063039267,-500.0,0.00024657,2]
[313269320,1707063039278,-500.0,0.00024657,2]
[313269323,1707063039288,-500.0,0.00024657,2]
[313269325,1707063039299,-500.0,0.00024657,2]
[313269327,1707063039308,-500.0,0.00024657,2]
[313269329,1707063039317,-500.0,0.00024657,2]
[313269331,1707063039327,-235.65836293,0.00024657,2]
[313269332,1707063039336,-500.0,0.00024657,2]
[313269334,1707063039345,-500.0,0.00024657,2]
[313269336,1707063039355,-500.0,0.00024657,2]
[313269338,1707063039363,-500.0,0.00024657,2]
[313269340,1707063039373,-500.0,0.00024657,2]
[313269342,1707063039382,-579.91,0.00024657,2]
[313269344,1707063039391,-500.0,0.00024657,2]
[313269346,1707063039401,-500.0,0.00024657,2]
[313269348,1707063039410,-500.0,0.00024657,2]
[313269350,1707063039419,-500.0,0.00024657,2]
[313269352,1707063039429,-500.0,0.00024657,2]
[313269354,1707063039438,-245.076998,0.00024657,2]
[313269356,1707063039447,-245.076998,0.00024657,2]
[313269358,1707063039456,-245.076998,0.00024657,2]
[313269360,1707063039465,-245.076998,0.00024657,2]
[313269362,1707063039475,-245.076998,0.00024657,2]
[313269364,1707063039484,-245.076998,0.00024657,2]
[313269366,1707063039493,-245.076998,0.00024657,2]
[313269368,1707063039502,-245.076998,0.00024657,2]
[313269370,1707063039512,-151.0,0.00024657,2]
[313269372,1707063039521,-151.0,0.00024657,2]
[313269374,1707063039531,-172.578111,0.00024657,2]
[313269376,1707063039539,-500.0,0.00024657,2]
[313269378,1707063039549,-500.0,0.00024657,2]
[313269380,1707063039558,-500.0,0.00024657,2]
[313269382,1707063039567,-399.914727,0.00024657,2]
[313269384,1707063039576,-399.914727,0.00024657,2]
[313269386,1707063039585,-399.914727,0.00024657,2]
[313269388,1707063039594,-399.914727,0.00024657,2]
[313269390,1707063039603,-399.914727,0.00024657,2]
[313269392,1707063039613,-399.914727,0.00024657,2]
[313269402,1707063039701,-399.914727,0.00024657,2]
[313269404,1707063039710,-399.914727,0.00024657,2]
[313269407,1707063039719,-500.0,0.00024657,2]
[313269409,1707063039729,-500.0,0.00024657,2]
[313269410,1707063039738,-500.0,0.00024657,2]
[313269412,1707063039749,-500.0,0.00024657,2]
[313269415,1707063039758,-500.0,0.00024657,2]
[313269417,1707063039767,-500.0,0.00024657,2]
[313269418,1707063039778,-500.0,0.00024657,2]
[313269421,1707063039787,-200.0,0.00024657,2]
[313269423,1707063039798,-500.0,0.00024657,2]
[313269424,1707063039808,-9887.99,0.00024657,2]
[313269426,1707063039818,-500.0,0.00024657,2]
[313269428,1707063039827,-2624.77,0.00024657,2]
[313269431,1707063039837,-500.0,0.00024657,2]
[313269433,1707063039846,-500.0,0.00024657,2]
[313269435,1707063039858,-500.0,0.00024657,2]
[313269437,1707063039867,-500.0,0.00024657,2]
[313269439,1707063039876,-500.0,0.00024657,2]
[313269441,1707063039886,-3076.4,0.00024657,2]
[313269443,1707063039895,-500.0,0.00024657,2]
[313269445,1707063039904,-500.0,0.00024657,2]
[313269447,1707063039914,-500.0,0.00024657,2]
[313269449,1707063039923,-500.0,0.00024657,2]
[313269451,1707063039932,-500.0,0.00024657,2]
[313269453,1707063039942,-1510.04,0.00024657,2]
[313269455,1707063039951,-500.0,0.00024657,2]
[313269457,1707063039960,-500.0,0.00024657,2]
[313269459,1707063039969,-500.0,0.00024657,2]
[313269461,1707063039979,-1687.56,0.00024657,2]
[313269463,1707063039987,-500.0,0.00024657,2]
[313269465,1707063039996,-500.0,0.00024657,2]
[313269467,1707063040006,-500.0,0.00024657,2]
[313269468,1707063040014,-500.0,0.00024657,2]
[313269471,1707063040024,-500.0,0.00024657,2]
[313269473,1707063040034,-500.0,0.00024657,2]
[313269475,1707063040043,-500.0,0.00024657,2]
[313269476,1707063040054,-500.0,0.00024657,2]
[313269479,1707063040063,-3138.42,0.00024657,2]
[313269481,1707063040074,-249.022324,0.00024657,2]
[313269482,1707063040085,-249.022324,0.00024657,2]
[313269485,1707063040094,-249.022324,0.00024657,2]
[313269487,1707063040103,-249.022324,0.00024657,2]
[313269489,1707063040112,-249.022324,0.00024657,2]
[313269491,1707063040122,-249.022324,0.00024657,2]
[313269493,1707063040131,-249.022324,0.00024657,2]
[313269495,1707063040139,-249.022324,0.00024657,2]
[313269497,1707063040148,-680.91,0.00024657,2]
[313269499,1707063040157,-230.73943628,0.00024657,2]
[313269501,1707063040166,-500.0,0.00024657,2]
[313269502,1707063040175,-500.0,0.00024657,2]
[313269505,1707063040185,-637.68,0.00024657,2]
[313269507,1707063040194,-4015.09,0.00024657,2]
[313269509,1707063040203,-1162.75,0.00024657,2]
[313269511,1707063040212,-516.36320325,0.00024657,2]
[313269513,1707063040221,-500.0,0.00024657,2]
[313269515,1707063040235,-500.0,0.00024657,2]
[313269516,1707063040245,-500.0,0.00024657,2]
[313269518,1707063040254,-826.52,0.00024657,2]
[313269520,1707063040263,-500.0,0.00024657,2]
[313269522,1707063040273,-500.0,0.00024657,2]
[313269524,1707063040282,-500.0,0.00024657,2]
[313269526,1707063040291,-556.67,0.00024657,2]
[313269528,1707063040300,-1000.0,0.00024657,2]
[313269530,1707063040311,-500.0,0.00024657,2]
[313269532,1707063040321,-1155.27,0.00024657,2]
[313269534,1707063040330,-500.0,0.00024657,2]
[313269536,1707063040339,-525.41155046,0.00024657,2]
[313269538,1707063040349,-500.0,0.00024657,2]
[313269540,1707063040357,-500.0,0.00024657,2]
[313269542,1707063040367,-500.0,0.00024657,2]
[313269544,1707063040376,-525.71,0.00024657,2]
[313269546,1707063040385,-3640.29,0.00024657,2]
[313269548,1707063040394,-500.0,0.00024657,2]
[313269550,1707063040403,-500.0,0.00024657,2]
[313269552,1707063040412,-500.0,0.00024657,2]
[313269554,1707063040421,-500.0,0.00024657,2]
[313269556,1707063040432,-500.0,0.00024657,2]
[313269558,1707063040441,-500.0,0.00024657,2]
[313269560,1707063040450,-500.0,0.00024657,2]
[313269562,1707063040459,-7018.05,0.00024657,2]
[313269564,1707063040468,-500.0,0.00024657,2]
[313269567,1707063040478,-500.0,0.00024657,2]
[313269569,1707063040487,-500.0,0.00024657,2]
[313269570,1707063040498,-500.0,0.00024657,2]
[313269572,1707063040507,-9326.48,0.00024657,2]
[313269574,1707063040517,-1179.74,0.00024657,2]
[313269576,1707063040526,-922.97,0.00024657,2]
[313269578,1707063040535,-500.0,0.00024657,2]
[313269580,1707063040544,-500.0,0.00024657,2]
[313269582,1707063040554,-153.9751229,0.00024658,2]
[313269584,1707063040564,-1000.0,0.00024683,2]
[313269586,1707063040573,-1008.24165472,0.00024697,2]
[313269589,1707063040582,-1006.11142357,0.00024811,2]
[313269591,1707063040591,-31062.6338402,0.00024831,2]
[313269593,1707063040601,-245.076998,0.00024831,2]
[313269595,1707063040609,-245.076998,0.00024831,2]
[313269597,1707063040618,-399.914727,0.00024831,2]
[313269599,1707063040627,-399.914727,0.00024831,2]
[313269600,1707063040637,-249.022324,0.00024831,2]
[313269602,1707063040647,-249.022324,0.00024831,2]
[313269605,1707063040656,-30000.0,0.000249,2]
[313269606,1707063040665,-237.054,0.000249,2]
[313269608,1707063040675,-237.054,0.000249,2]
[313269611,1707063040684,-258.08743898,0.00024926,2]
[313269613,1707063040693,-304.83721867,0.00024927,2]
[313269615,1707063040703,-2819.53578676,0.00024927,2]
[313269617,1707063040712,-245.076998,0.00024927,2]
[313269619,1707063040721,-245.076998,0.00024927,2]
[313269624,1707063040730,-399.914727,0.00024927,2]
[313269627,1707063040738,-399.914727,0.00024927,2]
[313269629,1707063040748,-249.022324,0.00024927,2]
[313269632,1707063040757,-249.022324,0.00024927,2]
[313269635,1707063040768,-175.1104275,0.00024929,2]
[313269638,1707063040777,-155.03875969,0.00024929,2]
[313269642,1707063040787,-273.02300698,0.00024929,2]
[313269644,1707063040796,-500.0,0.00024931,2]
[313269646,1707063040807,-500.0,0.00024931,2]
[313269649,1707063040816,-500.0,0.00024931,2]
[313269652,1707063040826,-500.0,0.00024931,2]
[313269655,1707063040838,-500.0,0.00024931,2]
[313269658,1707063040847,-500.0,0.00024931,2]
[313269661,1707063040856,-500.0,0.00024931,2]
[313269663,1707063040865,-500.0,0.00024931,2]
[313269665,1707063040874,-500.0,0.00024931,2]
[313269667,1707063040882,-1006.25,0.00024931,2]
[313269669,1707063040892,-500.0,0.00024931,2]
[313269671,1707063040901,-500.0,0.00024931,2]
[313269673,1707063040910,-500.0,0.00024931,2]
[313269675,1707063040919,-237.054,0.00024931,2]
[313269677,1707063040929,-237.054,0.00024931,2]
[313269679,1707063040939,-237.054,0.00024931,2]
[313269680,1707063040948,-237.054,0.00024931,2]
[313269681,1707063040957,-500.0,0.00024931,2]
[313269683,1707063040966,-500.0,0.00024931,2]
[313269684,1707063040976,-500.0,0.00024931,2]
[313269686,1707063040985,-500.0,0.00024931,2]
[313269688,1707063040994,-500.0,0.00024931,2]
[313269690,1707063041003,-500.0,0.00024931,2]
[313269692,1707063041012,-898.82,0.00024931,2]
[313269694,1707063041021,-500.0,0.00024931,2]
[313269696,1707063041030,-500.0,0.00024931,2]
[313269698,1707063041039,-500.0,0.00024931,2]
[313269700,1707063041048,-500.0,0.00024931,2]
[313269702,1707063041057,-1078.89,0.00024931,2]
[313269704,1707063041067,-500.0,0.00024931,2]
[313269706,1707063041075,-500.0,0.00024931,2]
[313269708,1707063041084,-500.0,0.00024931,2]
[313269710,1707063041093,-500.0,0.00024931,2]
[313269712,1707063041102,-500.0,0.00024931,2]
[313269714,1707063041111,-500.0,0.00024931,2]
[313269716,1707063041120,-500.0,0.00024931,2]
[313269718,1707063041129,-500.0,0.00024931,2]
[313269720,1707063041138,-378.57526087,0.00024931,2]
[313269722,1707063041147,-500.0,0.00024931,2]
[313269724,1707063041156,-500.0,0.00024931,2]
[313269726,1707063041165,-500.0,0.00024931,2]
[313269728,1707063041174,-500.0,0.00024931,2]
[313269730,1707063041183,-500.0,0.00024931,2]
[313269732,1707063041192,-500.0,0.00024931,2]
[313269734,1707063041201,-500.0,0.00024931,2]
[313269736,1707063041210,-500.0,0.00024931,2]
[313269738,1707063041219,-500.0,0.00024931,2]
[313269740,1707063041229,-500.0,0.00024931,2]
[313269743,1707063041241,-500.0,0.00024931,2]
[313269745,1707063041250,-500.0,0.00024931,2]
[313269747,1707063041259,-500.0,0.00024931,2]
[313269748,1707063041270,-500.0,0.00024931,2]
[313269750,1707063041280,-500.0,0.00024931,2]
[313269752,1707063041290,-500.0,0.00024931,2]
[313269754,1707063041299,-579.91,0.00024931,2]
[313269756,1707063041308,-500.0,0.00024931,2]
[313269759,1707063041318,-195.26414691,0.00024931,2]
[313269760,1707063041327,-500.0,0.00024931,2]
[313269763,1707063041336,-500.0,0.00024931,2]
[313269764,1707063041346,-500.0,0.00024931,2]
[313269766,1707063041355,-245.076998,0.00024931,2]
[313269768,1707063041364,-245.076998,0.00024931,2]
[313269770,1707063041373,-245.076998,0.00024931,2]
[313269772,1707063041382,-245.077007,0.00024931,2]
[313269774,1707063041391,-500.0,0.00024931,2]
[313269776,1707063041401,-500.0,0.00024931,2]
[313269778,1707063041410,-500.0,0.00024931,2]
[313269780,1707063041419,-399.914727,0.00024931,2]
[313269782,1707063041428,-399.914727,0.00024931,2]
[313269784,1707063041438,-399.914727,0.00024931,2]
[313269786,1707063041447,-399.914724,0.00024931,2]
[313269788,1707063041456,-500.0,0.00024931,2]
[313269791,1707063041465,-500.0,0.00024931,2]
[313269792,1707063041475,-558.40158265,0.00024931,2]
[313269794,1707063041484,-500.0,0.00024931,2]
[313269797,1707063041493,-500.0,0.00024931,2]
[313269799,1707063041502,-500.0,0.00024931,2]
[313269801,1707063041512,-500.0,0.00024931,2]
[313269802,1707063041521,-500.0,0.00024931,2]
[313269804,1707063041530,-9887.99,0.00024931,2]
[313269806,1707063041539,-500.0,0.00024931,2]
[313269808,1707063041548,-2624.77,0.00024931,2]
[313269811,1707063041558,-500.0,0.00024931,2]
[313269813,1707063041567,-500.0,0.00024931,2]
[313269814,1707063041576,-500.0,0.00024931,2]
[313269816,1707063041585,-500.0,0.00024931,2]
[313269818,1707063041594,-3076.4,0.00024931,2]
[313269820,1707063041603,-500.0,0.00024931,2]
[313269822,1707063041612,-500.0,0.00024931,2]
[313269824,1707063041621,-500.0,0.00024931,2]
[313269826,1707063041630,-500.0,0.00024931,2]
[313269828,1707063041639,-500.0,0.00024931,2]
[313269830,1707063041648,-1510.04,0.00024931,2]
[313269832,1707063041657,-500.0,0.00024931,2]
[313269834,1707063041667,-500.0,0.00024931,2]
[313269836,1707063041676,-1687.56,0.00024931,2]
[313269846,1707063041749,-500.0,0.00024931,2]
[313269848,1707063041766,-500.0,0.00024931,2]
[313269850,1707063041776,-500.0,0.00024931,2]
[313269852,1707063041785,-500.0,0.00024931,2]
[313269854,1707063041794,-500.0,0.00024931,2]
[313269856,1707063041803,-500.0,0.00024931,2]
[313269858,1707063041812,-500.0,0.00024931,2]
[313269860,1707063041821,-3138.42,0.00024931,2]
[313269862,1707063041830,-249.022324,0.00024931,2]
[313269864,1707063041840,-249.022324,0.00024931,2]
[313269866,1707063041849,-680.91,0.00024931,2]
[313269868,1707063041857,-249.022324,0.00024931,2]
[313269870,1707063041866,-249.022331,0.00024931,2]
[313269872,1707063041875,-592.29411097,0.00024931,2]
[313269874,1707063041885,-500.0,0.00024931,2]
[313269875,1707063041894,-637.68,0.00024931,2]
[313269877,1707063041903,-4015.09,0.00024931,2]
[313269880,1707063041913,-1162.75,0.00024931,2]
[313269882,1707063041923,-500.0,0.00024931,2]
[313269884,1707063041934,-500.0,0.00024931,2]
[313269886,1707063041944,-826.52,0.00024931,2]
[313269888,1707063041954,-500.0,0.00024931,2]
[313269890,1707063041963,-500.0,0.00024931,2]
[313269892,1707063041973,-556.67,0.00024931,2]
[313269894,1707063041983,-1000.0,0.00024931,2]